bitfinex/quotes_ETHUSD_20250810
["timestamp","ask_amount","ask_price","bid_price","bid_amount"]
[1754836288383,0.002,4217.2,4217.1,9.24369781]
[1754836289396,0.002,4217.2,4217.1,5.48969781]
[1754836289897,0.002,4217.2,4217.1,9.24369781]
[1754836291610,0.8847,4217.2,4217.1,9.24369781]
[1754836291823,0.8847,4217.2,4217.1,3.1184]
[1754836292394,0.8847,4217.2,4217.1,6.754]
[1754836292581,0.8847,4217.2,4217.1,9.12529781]
[1754836293861,0.8847,4217.2,4217.1,6.754]
[1754836294128,0.8847,4217.2,4217.1,9.12529781]
[1754836294286,0.8847,4217.2,4217.1,3.0]
[1754836294487,0.8847,4217.2,4217.1,5.37129781]
[1754836295523,0.002,4217.2,4217.1,5.37129781]
[1754836295710,0.002,4217.2,4217.1,7.56546684]
[1754836296079,0.002,4217.6,4217.1,7.56546684]
[1754836296080,0.002,4217.6,4217.5,2.37107291]
[1754836296308,0.002,4217.6,4217.5,9.24247291]
[1754836296504,0.002,4217.6,4217.5,10.16867291]
[1754836299105,0.002,4217.6,4217.5,9.24247291]
[1754836299312,0.002,4217.6,4217.5,10.44928505]
[1754836300610,0.002,4217.6,4217.5,6.69628505]
[1754836301010,0.002,4217.6,4217.5,10.44928505]
[1754836302666,0.002,4217.6,4217.5,6.69628505]
[1754836302808,0.002,4217.6,4217.5,10.44928505]
[1754836304933,0.002,4217.6,4217.5,10.44828505]
[1754836306860,0.002,4217.6,4217.5,11.37448505]
[1754836307209,0.002,4217.6,4217.5,10.44828505]
[1754836307725,0.4768,4217.6,4217.5,10.44828505]
[1754836307928,0.4768,4217.6,4217.5,5.48947291]
[1754836308122,0.9411,4217.6,4217.5,9.24147291]
[1754836308523,0.9411,4217.6,4217.5,3.1184]
[1754836309044,0.9411,4217.6,4217.5,5.37107291]
[1754836309045,0.4768,4217.6,4217.5,5.37107291]
[1754836309745,0.4768,4217.6,4217.5,3.0]
[1754836310043,0.4768,4217.6,4217.5,5.37107291]
[1754836310464,0.002,4217.6,4217.5,5.48947291]
[1754836310613,0.002,4217.6,4217.5,6.65073814]
[1754836313447,0.9411,4217.6,4217.4,3.751]
[1754836313622,0.9411,4217.6,4217.4,6.12212532]
[1754836313623,0.4748,4217.5,4217.4,6.12212532]
[1754836313945,0.4748,4217.5,4217.4,2.37112532]
[1754836314348,0.002,4217.6,4217.5,2.37107291]
[1754836314646,0.4748,4217.5,4217.3,3.0]
[1754836314858,0.4748,4217.4,4217.1,2.37129781]
[1754836315019,0.002,4217.6,4217.1,2.37129781]
[1754836315219,0.4748,4217.3,4217.0,5.37134067]
[1754836315444,0.002,4217.6,4216.9,5.37140362]
[1754836315445,0.9391,4217.2,4216.9,5.37140362]
[1754836315644,0.9391,4217.1,4216.8,6.12342182]
[1754836315849,0.4643,4217.1,4216.8,5.37245529]
[1754836316044,0.4748,4217.0,4216.8,0.001]
[1754836316424,0.9391,4217.0,4216.9,2.37141027]
[1754836316868,0.4748,4217.0,4216.8,0.001]
[1754836317071,0.4748,4216.9,4216.8,0.001]
[1754836317586,0.9391,4216.9,4216.8,0.001]
[1754836318055,0.4748,4216.9,4216.8,0.001]
[1754836318560,0.4768,4217.6,4216.8,2.37246374]
[1754836318767,0.4748,4217.4,4216.8,2.37246374]
[1754836319135,0.69667519,4217.4,4216.8,2.37246374]
[1754836319462,0.4748,4217.4,4216.8,2.37246374]
[1754836319840,0.69667519,4217.4,4216.8,2.37246374]
[1754836320067,0.4748,4217.4,4217.2,2.37122497]
[1754836320278,0.22187519,4217.5,4217.2,2.37122497]
[1754836320449,0.002,4217.6,4217.2,2.37122497]
[1754836320975,0.002,4217.6,4216.8,3.461]
[1754836321180,0.002,4217.6,4217.4,2.37112615]
[1754836321394,0.002,4217.6,4216.8,3.48471466]
[1754836321395,0.002,4217.6,4217.5,2.37107291]
[1754836321577,0.002,4217.6,4217.4,2.37111712]
[1754836321746,0.002,4217.6,4217.5,2.37107291]
[1754836322946,0.002,4217.6,4217.5,3.30237291]
[1754836323390,0.002,4217.6,4217.5,3.42077291]
[1754836323915,0.002,4217.6,4217.5,2.48947291]
[1754836324892,3.43053304,4217.6,4216.8,2.49085397]
[1754836325060,1.50422849,4217.5,4217.0,2.37131048]
[1754836325257,0.3432533,4217.5,4217.0,2.37131048]
[1754836325475,0.4748,4217.4,4216.8,0.1194]
[1754836325673,0.9391,4217.4,4216.8,0.1194]
[1754836325879,0.37737826,4217.3,4216.8,2.49085628]
[1754836326051,0.85217826,4217.3,4216.9,2.37140685]
[1754836326400,0.4748,4217.2,4217.0,2.37134647]
[1754836326548,0.4643,4217.2,4216.8,0.001]
[1754836326753,0.002,4217.6,4216.8,0.001]
[1754836326754,0.1184,4217.3,4216.8,0.001]
[1754836326985,0.1184,4217.3,4216.9,2.37141027]
[1754836327285,0.4768,4217.6,4217.4,2.37109122]
[1754836327286,0.002,4217.6,4217.4,2.37109122]
[1754836327461,0.002,4217.6,4217.1,0.1184]
[1754836327684,0.002,4217.6,4217.5,2.37107291]
[1754836329279,0.002,4217.6,4217.5,6.42077291]
[1754836330591,0.002,4217.6,4217.5,10.16977291]
[1754836338815,0.002,4217.6,4217.5,10.05137291]
[1754836339530,0.002,4217.6,4217.5,9.11907291]
[1754836339733,0.002,4217.6,4217.5,10.36188813]
[1754836340928,0.002,4217.6,4217.5,6.61388813]
[1754836341134,0.002,4217.6,4217.5,10.36188813]
[1754836342012,0.002,4217.6,4217.5,10.82378813]
[1754836346411,0.002,4217.6,4217.5,10.35988813]
[1754836346621,0.002,4217.6,4217.5,10.45481413]
[1754836347460,0.4516,4217.6,4217.5,9.21199891]
[1754836347615,0.002,4217.6,4217.5,9.21199891]
[1754836348527,0.4516,4217.6,4217.5,5.46599891]
[1754836348735,0.4516,4217.6,4217.5,9.33039891]
[1754836348932,0.4516,4217.6,4217.5,9.23547291]
[1754836349744,0.9379,4217.6,4217.5,3.1184]
[1754836350043,0.9379,4217.6,4217.5,0.1184]
[1754836350265,0.9379,4217.6,4216.9,2.37135909]
[1754836350447,1.26698651,4217.5,4217.2,0.4863]
[1754836350663,0.33108651,4217.5,4217.2,0.4863]
[1754836350820,0.9359,4217.4,4216.8,3.001]
[1754836351147,0.4496,4217.3,4216.8,3.1194]
[1754836351461,0.002,4217.6,4217.5,2.37107291]
[1754836351626,0.002,4217.6,4217.5,9.11607291]
[1754836351830,0.002,4217.6,4217.5,10.05397291]
[1754836353513,0.002,4217.6,4217.5,10.14889491]
[1754836353745,0.002,4217.6,4217.5,6.40389491]
[1754836353949,0.002,4217.6,4217.5,7.2932393]
[1754836354342,0.002,4217.6,4217.5,11.0382393]
[1754836354547,0.002,4217.6,4217.5,10.1003393]
[1754836356769,0.002,4217.6,4217.5,11.0382393]
[1754836358945,0.002,4217.6,4217.5,10.0993393]
[1754836360473,0.002,4217.6,4217.5,9.20999491]
[1754836361458,0.002,4217.6,4217.5,5.46599491]
[1754836361661,0.002,4217.6,4217.5,9.20999491]
[1754836368702,0.002,4217.6,4217.5,5.46599491]
[1754836368999,0.002,4217.6,4217.5,9.20799491]
[1754836369309,0.002,4217.6,4217.5,9.67889491]
[1754836369799,0.002,4217.6,4217.5,9.20799491]
[1754836370574,0.002,4217.6,4217.5,5.46599491]
[1754836370774,0.4505,4217.6,4217.5,9.20799491]
[1754836370975,0.002,4217.6,4217.5,9.20799491]
[1754836372691,0.002,4217.6,4217.5,9.20699491]
[1754836372890,0.002,4217.6,4217.5,5.46599491]
[1754836373294,0.002,4217.6,4217.5,9.20699491]
[1754836373501,0.4505,4217.6,4217.5,9.20699491]
[1754836373671,0.002,4217.6,4217.5,9.20699491]
[1754836374277,0.002,4217.6,4217.5,0.094922]
[1754836374608,0.002,4217.6,4217.5,2.46599491]
[1754836374810,0.002,4217.6,4217.5,2.37107291]
[1754836375012,0.002,4217.6,4217.5,10.28410907]
[1754836375179,0.002,4217.6,4217.5,11.20359835]
[1754836375379,0.002,4217.6,4217.5,12.45952866]
[1754836375711,1e-08,4217.6,4217.5,11.20359835]
[1754836376279,1e-08,4217.9,4217.7,2.37096047]
[1754836376651,1e-08,4217.9,4217.8,7.88505763]
[1754836376782,1e-08,4217.9,4217.8,8.80454859]
[1754836376981,1e-08,4217.9,4217.8,12.43387449]
[1754836377279,0.04,4218.9,4217.9,5.37084805]
[1754836377602,0.04,4218.9,4218.8,2.37034227]
[1754836377798,0.04,4218.9,4218.8,6.11034227]
[1754836378006,0.04,4218.9,4218.8,10.05354227]
[1754836378205,0.04,4218.9,4218.8,5.37034227]
[1754836378387,0.04,4218.9,4218.8,9.11034227]
[1754836378584,0.04,4218.9,4218.8,5.37034227]
[1754836378787,0.04,4218.9,4218.8,3.0]
[1754836379018,0.04,4218.9,4218.6,2.37043119]
[1754836379019,0.4885,4218.9,4218.6,2.37043119]
[1754836379218,0.4885,4218.9,4217.9,0.4709]
[1754836379422,0.04,4218.9,4218.4,0.4555]
[1754836379588,0.04,4218.9,4218.6,3.0]
[1754836379915,0.4885,4218.9,4218.5,5.37050471]
[1754836380619,0.4885,4218.9,4218.6,2.37042678]
[1754836380823,0.4885,4218.9,4218.5,3.0]
[1754836381023,0.4885,4218.9,4218.4,6.56606198]
[1754836381024,0.04,4218.9,4218.8,2.37034227]
[1754836381338,0.04,4218.9,4218.6,3.739]
[1754836381496,0.4485,4218.8,4218.6,3.739]
[1754836381699,0.4485,4218.8,4218.6,2.3704517]
[1754836382026,0.4485,4218.8,4218.5,3.0]
[1754836382213,0.4485,4218.8,4218.7,2.37039846]
[1754836382543,0.4485,4218.8,4218.6,2.37045295]
[1754836382697,0.4485,4218.8,4218.5,5.37050638]
[1754836382898,0.4485,4218.8,4218.6,2.37045355]
[1754836383425,2.37047264,4218.6,4218.4,0.4555]
[1754836383632,1.23144726,4218.5,4218.4,0.4555]
[1754836383926,0.904,4218.5,4217.8,3.0]
[1754836384226,0.904,4218.5,4218.0,2.37077376]
[1754836384425,0.904,4218.5,4217.9,6.10984769]
[1754836384607,0.904,4218.5,4218.0,2.37079184]
[1754836384920,0.4485,4218.4,4218.2,0.1184]
[1754836385123,0.4555,4218.4,4218.2,0.1184]
[1754836385332,0.4485,4218.3,4217.9,2.37084182]
[1754836385493,0.4485,4218.3,4218.0,0.1184]
[1754836386500,0.4485,4218.2,4218.0,0.1184]
[1754836387594,0.4555,4218.7,4218.0,2.48918312]
[1754836387796,0.4485,4218.6,4218.0,2.48918312]
[1754836388943,0.4485,4218.6,4218.1,2.37073364]
[1754836389300,0.4555,4218.6,4218.0,0.1184]
[1754836389495,0.4485,4218.5,4218.1,2.37073188]
[1754836389803,0.4555,4218.6,4218.0,2.4891868]
[1754836390002,0.4485,4218.4,4218.1,2.37073462]
[1754836390217,0.4575,4218.6,4218.0,0.1184]
[1754836390218,0.002,4218.6,4218.0,0.1184]
[1754836390411,0.002,4218.6,4218.5,2.37051084]
[1754836390624,0.002,4218.6,4218.4,2.37056574]
[1754836391016,0.002,4218.6,4218.0,0.1184]
[1754836391196,0.904,4218.5,4218.0,0.1184]
[1754836391401,0.904,4218.4,4218.1,2.37068271]
[1754836391703,0.4485,4218.3,4218.1,2.37068271]
[1754836392104,0.4485,4218.3,4218.0,0.1184]
[1754836392523,0.4555,4218.4,4218.0,0.1184]
[1754836392524,0.4485,4218.2,4218.0,0.1184]
[1754836393136,0.904,4218.1,4217.6,3.0]
[1754836393320,0.4641,4218.2,4217.8,0.1184]
[1754836393521,0.904,4218.0,4217.6,3.0]
[1754836393751,0.904,4218.0,4217.6,0.1184]
[1754836393752,30.904,4217.9,4217.6,0.1184]
[1754836394043,2.48936107,4217.7,4217.0,0.713047]
[1754836394239,0.1184,4217.3,4217.0,0.001]
[1754836394735,0.904,4217.2,4217.0,0.001]
[1754836395138,33.27524158,4217.2,4217.0,0.001]
[1754836395825,36.82524158,4217.2,4217.0,0.001]
[1754836396139,5.92129781,4217.1,4217.0,1e-08]
[1754836396339,37.55773954,4217.1,4217.0,1e-08]
[1754836396724,41.29373954,4217.1,4217.0,1e-08]
[1754836397333,40.56129781,4217.1,4217.0,1e-08]
[1754836397735,40.56129781,4217.1,4216.8,0.001]
[1754836397736,2.37141027,4216.9,4216.8,1e-08]
[1754836398065,5.92157899,4216.6,4216.5,0.001]
[1754836398248,36.14268017,4216.6,4216.5,0.001]
[1754836398432,36.99597899,4216.6,4216.5,0.001]
[1754836398617,41.46172511,4216.6,4216.5,0.001]
[1754836399313,40.73197899,4216.6,4216.5,0.001]
[1754836399511,43.04901967,4216.6,4216.5,0.001]
[1754836401232,39.40803167,4216.6,4216.5,0.001]
[1754836401551,32.41205268,4216.6,4216.5,0.001]
[1754836401749,39.38161967,4216.6,4216.5,0.001]
[1754836402054,39.38161967,4216.6,4216.3,0.001]
[1754836402055,5.92163524,4216.5,4216.3,0.001]
[1754836402261,2.37202903,4215.8,4215.0,0.001]
[1754836402414,2.92242295,4215.1,4215.0,0.001]
[1754836402615,39.65942295,4215.1,4215.0,0.001]
[1754836402821,42.93246363,4215.1,4215.0,0.001]
[1754836404322,42.93146363,4215.1,4215.0,0.001]
[1754836405537,38.71186363,4215.1,4215.0,0.001]
[1754836405726,42.44886363,4215.1,4215.0,0.001]
[1754836406063,42.93246363,4215.1,4215.0,0.001]
[1754836406620,41.97646363,4215.1,4215.0,0.001]
[1754836406824,42.93246363,4215.1,4215.0,0.001]
[1754836407958,42.44886363,4215.1,4215.0,0.001]
[1754836408261,36.05404068,4215.1,4215.0,0.001]
[1754836408556,38.97646363,4215.1,4215.0,0.001]
[1754836408759,39.44886363,4215.1,4215.0,0.001]
[1754836409230,38.97646363,4215.1,4215.0,0.001]
[1754836409763,36.60404068,4215.1,4215.0,0.001]
[1754836410069,33.737,4215.1,4215.0,0.001]
[1754836410480,33.737,4215.1,4215.0,0.9205]
[1754836410760,33.91211953,4215.1,4215.0,0.001]
[1754836410962,5.694,4215.8,4215.0,0.9205]
[1754836411270,43.737,4215.7,4215.0,0.9205]
[1754836411562,5.694,4215.8,4215.0,0.9205]
[1754836411563,30.0,4215.6,4215.1,3.291918]
[1754836411764,0.1184,4215.2,4215.1,2.372418]
[1754836411952,3.8554,4215.2,4215.0,2.37347117]
[1754836412368,5.694,4215.8,4215.5,2.37217676]
[1754836412555,3.8554,4215.7,4215.6,0.9195]
[1754836412734,3.8554,4215.7,4215.1,0.1184]
[1754836412735,5.694,4215.8,4215.7,2.3720853]
[1754836412934,5.694,4215.8,4215.1,0.1184]
[1754836412935,10.0,4217.0,4215.2,5.37236667]
[1754836413136,0.002,4217.2,4215.2,5.37236667]
[1754836413137,0.1184,4216.2,4216.1,2.37186024]
[1754836413332,3.8554,4216.2,4216.1,0.9195]
[1754836413948,3.8554,4216.2,4215.7,2.81657564]
[1754836414157,3.8554,4216.2,4215.8,0.9195]
[1754836414540,3.8554,4216.2,4215.9,0.9195]
[1754836414735,3.8554,4216.2,4216.0,0.9195]
[1754836415069,3.8554,4216.2,4216.1,0.9195]
[1754836415441,3.8554,4216.2,4216.1,3.29136024]
[1754836415650,3.8554,4216.2,4216.1,0.9195]
[1754836416034,3.8544,4216.2,4216.1,0.9195]
[1754836417865,3.8544,4216.2,4215.9,2.3719632]
[1754836418073,3.8544,4216.2,4215.9,0.9195]
[1754836418649,3.8544,4216.2,4216.0,0.9195]
[1754836418848,3.8544,4216.2,4215.6,0.1184]
[1754836418849,0.1184,4216.2,4216.1,0.9195]
[1754836419045,3.736,4216.2,4216.1,0.9195]
[1754836419251,3.736,4216.2,4216.1,3.29136024]
[1754836420078,3.735,4216.2,4216.1,3.63233626]
[1754836420379,0.1184,4216.9,4216.6,2.3715417]
[1754836420676,3.735,4216.8,4216.7,0.9195]
[1754836420879,3.735,4216.8,4216.4,2.37168095]
[1754836421045,3.735,4216.8,4216.4,2.49009149]
[1754836421245,3.735,4216.8,4216.5,0.9195]
[1754836421655,3.735,4216.8,4216.4,0.1184]
[1754836422081,3.735,4216.8,4216.4,2.49007291]
[1754836422251,3.735,4216.8,4216.5,2.3716312]
[1754836422579,0.1184,4216.9,4216.6,0.9195]
[1754836422880,3.735,4216.7,4216.5,2.37162597]
[1754836423383,3.735,4216.7,4216.5,3.29112597]
[1754836423569,3.735,4216.7,4216.6,3.29107899]
[1754836424368,0.1184,4216.9,4216.7,2.37150925]
[1754836424557,3.734,4216.8,4216.7,0.9195]
[1754836425359,3.734,4216.8,4216.4,0.5629]
[1754836425683,3.734,4216.8,4216.4,0.1184]
[1754836425886,0.38524,4216.7,4216.4,0.1184]
[1754836426179,0.38524,4216.7,4216.0,0.1184]
[1754836426180,0.1184,4216.6,4216.0,0.1184]
[1754836426550,0.1184,4216.6,4216.0,2.49030245]
[1754836427159,0.1184,4216.6,4216.0,0.1184]
[1754836427361,30.4537,4216.5,4215.4,3.0]
[1754836427682,0.1184,4216.0,4215.5,2.58935925]
[1754836427867,33.734,4215.9,4215.3,3.0]
[1754836428068,3.734,4215.9,4215.4,0.21720418]
[1754836428269,3.734,4215.9,4215.5,0.21720418]
[1754836428584,3.734,4215.9,4215.3,2.37225995]
[1754836428886,0.1184,4216.0,4215.4,0.21718598]
[1754836429109,0.1184,4216.3,4215.7,0.1184]
[1754836429390,3.002,4217.2,4215.8,1.15362633]
[1754836429391,0.1184,4216.8,4215.8,1.15362633]
[1754836429581,3.733,4216.7,4216.2,2.49020078]
[1754836429777,3.733,4216.7,4216.3,3.30819271]
[1754836429979,3.733,4216.7,4216.3,0.9365]
[1754836430167,3.733,4216.6,4216.4,2.37165816]
[1754836430364,3.733,4216.6,4216.5,0.9365]
[1754836431256,3.733,4216.6,4216.2,0.1184]
[1754836431455,3.733,4216.6,4216.5,2.37163524]
[1754836431670,3.733,4216.6,4216.5,3.30813524]
[1754836431856,3.733,4216.6,4216.5,0.9365]
[1754836432190,3.733,4216.6,4216.2,0.1184]
[1754836432387,3.733,4216.6,4216.3,0.9365]
[1754836432889,4.11814,4216.6,4216.2,0.1184]
[1754836433489,4.11814,4216.6,4215.9,2.49036788]
[1754836433490,31.0285,4216.5,4215.9,2.49036788]
[1754836433799,30.0,4216.4,4215.9,0.1184]
[1754836433957,0.1184,4216.0,4215.6,2.37209677]
[1754836434154,3.732,4215.9,4215.2,2.37231118]
[1754836434373,4.61611,4215.9,4215.3,0.21722077]
[1754836434591,4.16241,4215.9,4215.4,0.21722077]
[1754836434757,4.16241,4215.9,4215.5,2.37215682]
[1754836435092,4.16241,4215.9,4215.3,2.37230776]
[1754836435093,4.16241,4215.9,4215.6,2.37213397]
[1754836435298,4.16241,4215.9,4215.2,2.49072339]
[1754836435457,4.16241,4215.9,4215.3,0.21744691]
[1754836435458,0.1184,4215.5,4215.3,0.21744691]
[1754836435658,3.732,4215.4,4215.3,2.37329874]
[1754836435883,3.732,4215.4,4215.3,2.59078492]
[1754836436290,3.732,4215.4,4215.3,0.21848618]
[1754836436595,3.732,4215.4,4215.3,2.59093915]
[1754836436759,3.732,4215.4,4215.3,2.37331039]
[1754836437360,3.732,4215.4,4215.3,2.59108913]
[1754836437604,3.732,4215.4,4215.3,0.21877874]
[1754836438392,4.11704,4215.4,4215.3,0.2187715]
[1754836438564,4.57074,4215.4,4215.3,0.2187715]
[1754836439095,4.11704,4215.4,4215.3,0.2187715]
[1754836439392,4.33852569,4215.4,4215.3,0.001]
[1754836439901,38.1708798,4215.4,4215.3,0.001]
[1754836440263,38.681846,4215.4,4215.3,0.001]
[1754836440489,38.1708798,4215.4,4215.3,0.001]
[1754836441074,38.6818457,4215.4,4215.3,0.001]
[1754836441728,38.68179823,4215.4,4215.3,0.001]
[1754836442417,38.1708798,4215.4,4215.3,0.001]
[1754836444118,48.00902295,4215.4,4215.3,1e-08]
[1754836444281,48.14196964,4215.4,4215.3,1e-08]
[1754836444478,47.51037514,4215.4,4215.3,1e-08]
[1754836444682,47.51028354,4215.4,4215.3,1e-08]
[1754836445103,48.14187804,4215.4,4215.3,1e-08]
[1754836445317,2.92247924,4215.0,4214.9,1e-08]
[1754836445484,40.59996769,4215.0,4214.9,1e-08]
[1754836445815,42.02061634,4215.0,4214.9,1e-08]
[1754836446017,2.9227044,4214.6,4212.5,0.9375]
[1754836446320,39.87519009,4214.6,4212.6,2.41481263]
[1754836446495,40.38573874,4214.6,4212.6,2.41481263]
[1754836446697,42.67941405,4214.6,4212.6,2.41481263]
[1754836446918,42.67941405,4214.6,4212.7,2.37375278]
[1754836447283,42.67941405,4214.6,4212.6,2.41481811]
[1754836447482,42.67941405,4214.6,4212.6,2.41482319]
[1754836447683,42.67941405,4214.6,4212.6,0.041]
[1754836448105,42.81195674,4214.6,4212.6,0.041]
[1754836448510,43.4492688,4214.6,4212.6,0.041]
[1754836449144,43.4492688,4214.6,4214.1,1e-08]
[1754836449145,0.55,4214.4,4214.1,1e-08]
[1754836449346,5.92343649,4213.3,4212.6,0.041]
[1754836449626,45.57292218,4213.3,4212.6,0.041]
[1754836449828,46.02662218,4213.3,4212.6,0.041]
[1754836450599,46.48302218,4213.3,4212.6,0.041]
[1754836450830,46.26153649,4213.3,4212.6,0.041]
[1754836451023,46.86695159,4213.3,4212.6,0.041]
[1754836452026,47.37430059,4213.3,4212.6,0.041]
[1754836452533,46.86695159,4213.3,4212.6,0.041]
[1754836452922,46.86695159,4213.3,4213.2,1e-08]
[1754836453335,51.3739762,4213.3,4213.2,1e-08]
[1754836453940,3.55,4212.6,4212.5,0.001]
[1754836454140,40.5868539,4212.6,4212.5,0.001]
[1754836454322,41.4969539,4212.6,4212.5,0.001]
[1754836454526,41.4969539,4212.6,4212.5,1e-08]
[1754836455335,41.5920669,4212.6,4212.5,1e-08]
[1754836455917,41.5920669,4212.6,4210.6,0.04]
[1754836455918,2.37422006,4212.0,4210.6,0.04]
[1754836456242,2.47388724,4212.5,4210.6,0.04]
[1754836456243,3.55,4211.8,4210.6,0.04]
[1754836456540,5.92490203,4210.7,4210.6,0.04]
[1754836456704,35.92490203,4210.7,4210.6,0.04]
[1754836456909,39.65690203,4210.7,4210.6,0.04]
[1754836457455,39.65690203,4210.7,4210.6,0.9913]
[1754836457747,37.282,4210.7,4210.6,0.9913]
[1754836457950,34.282,4210.7,4210.6,0.9913]
[1754836458620,30.0,4210.7,4210.6,0.9913]
[1754836458830,33.733,4210.7,4210.6,0.9913]
[1754836459025,33.733,4210.7,4210.6,0.04]
[1754836459511,35.8572343,4210.7,4210.6,0.04]
[1754836459702,38.8572343,4210.7,4210.6,0.04]
[1754836459907,41.23213633,4210.7,4210.6,0.04]
[1754836460324,42.14593633,4210.7,4210.6,0.04]
[1754836461542,37.67320947,4210.7,4210.6,0.04]
[1754836461736,33.72407314,4210.7,4210.6,0.9913]
[1754836461927,30.17407314,4210.7,4210.6,0.9913]
[1754836462330,39.83197517,4210.7,4210.6,0.9913]
[1754836462508,39.83197517,4210.7,4210.6,0.04]
[1754836462935,36.09897517,4210.7,4210.6,0.04]
[1754836463124,39.83197517,4210.7,4210.6,0.04]
[1754836463331,41.79124947,4210.7,4210.6,0.04]
[1754836463855,41.79124947,4210.7,4210.6,0.9913]
[1754836464147,39.83197517,4210.7,4210.6,0.9913]
[1754836464607,37.45707314,4210.7,4210.6,0.9913]
[1754836465051,39.83197517,4210.7,4210.6,0.04]
[1754836465907,37.57547314,4210.7,4210.6,0.04]
[1754836466843,39.95037517,4210.7,4210.6,0.04]
[1754836467148,42.26741585,4210.7,4210.6,0.04]
[1754836467642,39.89251382,4210.7,4210.6,0.04]
[1754836468952,0.1184,4210.7,4210.6,0.9913]
[1754836469255,0.11593975,4211.7,4210.6,0.9913]
[1754836469407,0.1184,4211.2,4210.7,2.84620203]
[1754836469610,0.11593975,4211.7,4211.6,2.37439452]
[1754836469844,3.734,4211.8,4211.7,2.37433815]
[1754836470046,3.734,4211.8,4211.7,2.84563815]
[1754836470223,0.1184,4212.4,4212.3,2.37399995]
[1754836470418,3.8524,4212.4,4212.3,2.37399995]
[1754836470633,3.8524,4212.4,4212.3,2.84529995]
[1754836470833,3.734,4212.4,4212.3,3.36723792]
[1754836471135,0.1184,4212.8,4212.7,2.37377453]
[1754836471458,3.8514,4212.8,4212.7,2.84507453]
[1754836472449,3.8514,4212.8,4212.7,0.4713]
[1754836472762,34.23654,4212.8,4212.2,0.4713]
[1754836472953,34.23654,4212.8,4210.4,2.37501949]
[1754836472954,30.0,4212.7,4211.8,2.84552638]
[1754836473260,0.1184,4212.0,4211.8,0.4713]
[1754836473573,3.733,4211.9,4211.6,2.37439452]
[1754836473772,3.733,4211.9,4211.7,2.37433618]
[1754836474293,3.733,4211.9,4211.8,0.4713]
[1754836474568,3.733,4211.9,4211.8,2.84558177]
[1754836474856,0.1184,4212.0,4211.8,2.84558177]
[1754836475048,0.1184,4212.0,4211.9,2.3742254]
[1754836475251,3.8514,4212.0,4211.9,2.8455254]
[1754836475560,3.8514,4212.0,4211.4,0.4713]
[1754836475858,0.55,4212.7,4212.2,2.37404752]
[1754836476058,0.55,4212.7,4212.3,0.4713]
[1754836476059,3.0,4212.5,4212.3,0.4713]
[1754836476263,43.22081232,4212.4,4212.3,0.4713]
[1754836476441,0.33921232,4212.4,4212.3,0.4713]
[1754836476761,0.1184,4212.4,4212.3,2.84529995]
[1754836476935,3.8504,4212.4,4212.3,2.84529995]
[1754836477136,4.07121232,4212.4,4212.3,2.84529995]
[1754836477748,4.07121232,4212.4,4212.0,2.3741626]
[1754836477950,4.07121232,4212.4,4211.8,2.37422554]
[1754836477951,0.1184,4212.1,4211.5,0.1184]
[1754836478183,0.1184,4212.1,4211.4,0.4713]
[1754836478184,3.732,4212.0,4211.7,2.3742911]
[1754836478662,0.1184,4211.8,4211.7,2.3742911]
[1754836478866,0.1184,4211.8,4211.4,0.4713]
[1754836478867,0.1184,4211.8,4211.4,2.37445576]
[1754836479064,0.1184,4211.5,4211.4,2.37446115]
[1754836479354,0.1184,4211.5,4211.4,3.06385551]
[1754836479355,3.8504,4211.5,4211.4,3.06385551]
[1754836479777,3.8504,4211.5,4211.4,2.59255551]
[1754836480093,3.8504,4211.5,4211.4,3.06385551]
[1754836480786,3.8504,4211.5,4211.4,0.21809436]
[1754836481085,3.8504,4211.5,4210.9,0.1184]
[1754836481086,0.55,4211.4,4210.9,0.1184]
[1754836481286,40.0,4211.3,4210.9,0.1184]
[1754836481491,0.1184,4211.0,4210.6,0.041]
[1754836481703,0.1184,4210.7,4210.6,0.041]
[1754836481990,35.51348503,4210.7,4210.6,0.041]
[1754836482291,33.35964247,4210.7,4210.6,0.041]
[1754836482499,36.06824247,4210.7,4210.6,0.041]
[1754836482659,34.07145947,4210.7,4210.6,0.041]
[1754836482971,3.8504,4210.7,4210.6,0.041]
[1754836483368,0.1184,4210.7,4210.6,2.41595843]
[1754836483566,0.1184,4210.7,4210.6,2.88725843]
[1754836483799,0.22111124,4211.3,4211.2,2.37462006]
[1754836483968,3.8504,4211.3,4211.2,2.37462006]
[1754836484177,3.95309653,4211.3,4211.2,2.84592006]
[1754836484491,3.732,4211.3,4211.2,2.84592006]
[1754836484806,3.732,4211.3,4211.2,3.37981859]
[1754836485163,3.732,4211.3,4211.2,2.90851859]
[1754836485362,3.732,4211.3,4211.2,3.37981859]
[1754836485591,3.732,4211.3,4211.2,3.59791652]
[1754836486815,3.732,4211.3,4211.2,3.59780356]
[1754836487095,3.732,4211.3,4211.2,3.06390503]
[1754836488802,3.732,4211.3,4211.2,2.59260503]
[1754836489606,4.2247,4211.3,4210.6,0.041]
[1754836489801,0.1184,4210.9,4210.8,2.37484563]
[1754836490002,3.8504,4210.9,4210.8,2.59296266]
[1754836490582,4.3431,4210.9,4210.8,2.59296266]
[1754836490983,3.8504,4210.9,4210.8,2.59296266]
[1754836492489,5.701,4211.8,4211.6,2.37439452]
[1754836492683,33.95335865,4211.7,4211.6,2.37439452]
[1754836492885,3.95335865,4211.7,4211.6,2.37439452]
[1754836493214,3.732,4211.7,4211.6,2.37439452]
[1754836493518,3.8504,4211.7,4211.6,2.37439452]
[1754836496398,4.3431,4211.7,4211.6,2.37439452]